[Event "November 21 Early 2023"]
[Site "https://www.chess.com"]
[Date "2023.11.21"]
[Round "6"]
[White "Le, Quang Liem"]
[Black "Kuzubov, Yuriy"]
[Result "1-0"]
[Board "6"]
[TimeControl "180+1"]
[WhiteFideId "12401137"]
[BlackFideId "14112906"]
[WhiteElo "2665"]
[BlackElo "2487"]
[WhiteTeam "VIE"]
[BlackTeam "UKR"]
[WhiteClock "0:00:08"]
[BlackClock "0:00:00"]

1. Nf3 {[%clk 0:03:00]}  d5 {[%clk 0:02:58]} 2. e3 {[%clk 0:03:00]}  c5 {[%clk 0:02:57]} 3. b3 {[%clk 0:03:00]}  g6 {[%clk 0:02:57]} 4. Bb2 {[%clk 0:03:00]}  Nf6 {[%clk 0:02:58]} 5. c4 {[%clk 0:02:55]}  Bg7 {[%clk 0:02:52]} 6. cxd5 {[%clk 0:02:56]}  O-O {[%clk 0:02:50]} 7. Bxf6 {[%clk 0:02:48]}  Bxf6 {[%clk 0:02:46]} 8. Nc3 {[%clk 0:02:49]}  Nd7 {[%clk 0:02:43]} 9. Rc1 {[%clk 0:02:44]}  a6 {[%clk 0:02:37]} 10. a4 {[%clk 0:02:26]}  Nb6 {[%clk 0:02:10]} 11. Bc4 {[%clk 0:02:10]}  Bf5 {[%clk 0:02:09]} 12. Qe2 {[%clk 0:01:58]}  e6 {[%clk 0:02:02]} 13. dxe6 {[%clk 0:01:49]}  Nxc4 {[%clk 0:01:57]} 14. exf7+ {[%clk 0:01:48]}  Rxf7 {[%clk 0:01:53]} 15. Qxc4 {[%clk 0:01:44]}  Bd3 {[%clk 0:01:49]} 16. Qd5 {[%clk 0:01:42]}  b5 {[%clk 0:01:30]} 17. h4 {[%clk 0:01:03]}  b4 {[%clk 0:01:20]} 18. Qxd8+ {[%clk 0:01:02]}  Rxd8 {[%clk 0:01:21]} 19. Ne2 {[%clk 0:00:52]}  c4 {[%clk 0:01:13]} 20. Nf4 {[%clk 0:00:27]}  cxb3 {[%clk 0:01:07]} 21. Nxd3 {[%clk 0:00:27]}  Rxd3 {[%clk 0:01:07]} 22. Ke2 {[%clk 0:00:28]}  Rfd7 {[%clk 0:01:06]} 23. Rb1 {[%clk 0:00:15]}  b2 {[%clk 0:00:52]} 24. Rhd1 {[%clk 0:00:15]}  Bc3 {[%clk 0:00:49]} 25. Nd4 {[%clk 0:00:14]}  R3xd4 {[%clk 0:00:46]} 26. exd4 {[%clk 0:00:14]}  Bxd4 {[%clk 0:00:47]} 27. f3 {[%clk 0:00:09]}  Kf7 {[%clk 0:00:33]} 28. Kd3 {[%clk 0:00:09]}  Bf6+ {[%clk 0:00:18]} 29. Kc4 {[%clk 0:00:09]}  Rd4+ {[%clk 0:00:17]} 30. Kc5 {[%clk 0:00:10]}  Rxh4 {[%clk 0:00:11]} 31. d4 {[%clk 0:00:11]}  Be7+ {[%clk 0:00:09]} 32. Kc4 {[%clk 0:00:11]}  Rh2 {[%clk 0:00:07]} 33. Rxb2 {[%clk 0:00:11]}  h5 {[%clk 0:00:07]} 34. Kd5 {[%clk 0:00:09]}  h4 {[%clk 0:00:07]} 35. Rdd2 {[%clk 0:00:09]}  Rh1 {[%clk 0:00:07]} 36. Kc6 {[%clk 0:00:09]}  Rc1+ {[%clk 0:00:06]} 37. Kd7 {[%clk 0:00:09]}  Re1 {[%clk 0:00:05]} 38. d5 {[%clk 0:00:09]}  Bf6 {[%clk 0:00:05]} 39. Rxb4 {[%clk 0:00:07]}  Bc3 {[%clk 0:00:05]} 40. Rf4+ {[%clk 0:00:08]}  Kg7 {[%clk 0:00:05]} 41. Rc2 {[%clk 0:00:09]}  Ba5 {[%clk 0:00:04]} 42. Rxh4 {[%clk 0:00:09]}  Rd1 {[%clk 0:00:04]} 43. d6 {[%clk 0:00:08]}  Kf6 {[%clk 0:00:04]} 44. Re4 {[%clk 0:00:08]}  g5 {[%clk 0:00:03]} 45. Rc6 {[%clk 0:00:08]}  Bc3 {[%clk 0:00:02]} 46. Rxa6 {[%clk 0:00:09]}  g4 {[%clk 0:00:00]} 47. Kc7 {[%clk 0:00:08]} 1-0

[Event "November 21 Early 2023"]
[Site "https://www.chess.com"]
[Date "2023.11.21"]
[Round "6"]
[White "Erigaisi Arjun"]
[Black "Dragun, Kamil"]
[Result "1-0"]
[Board "11"]
[TimeControl "180+1"]
[WhiteFideId "35009192"]
[BlackFideId "1134167"]
[WhiteElo "2729"]
[BlackElo "2551"]
[WhiteTeam "IND"]
[BlackTeam "POL"]
[WhiteClock "0:00:52"]
[BlackClock "0:00:04"]

1. c4 {[%clk 0:03:00]}  Nf6 {[%clk 0:02:56]} 2. Nc3 {[%clk 0:03:00]}  e5 {[%clk 0:02:55]} 3. Nf3 {[%clk 0:03:00]}  Nc6 {[%clk 0:02:54]} 4. g3 {[%clk 0:03:01]}  Bb4 {[%clk 0:02:47]} 5. Nd5 {[%clk 0:03:01]}  Bc5 {[%clk 0:02:42]} 6. Bg2 {[%clk 0:02:56]}  d6 {[%clk 0:02:40]} 7. O-O {[%clk 0:02:49]}  Nxd5 {[%clk 0:02:36]} 8. cxd5 {[%clk 0:02:49]}  Ne7 {[%clk 0:02:36]} 9. d4 {[%clk 0:02:48]}  exd4 {[%clk 0:02:37]} 10. Nxd4 {[%clk 0:02:49]}  O-O {[%clk 0:02:38]} 11. e4 {[%clk 0:02:47]}  f5 {[%clk 0:02:18]} 12. Be3 {[%clk 0:02:32]}  Bb6 {[%clk 0:02:04]} 13. Qd3 {[%clk 0:02:19]}  Ng6 {[%clk 0:01:14]} 14. f4 {[%clk 0:02:16]}  Bd7 {[%clk 0:01:04]} 15. Ne6 {[%clk 0:01:57]}  Bxe6 {[%clk 0:00:57]} 16. dxe6 {[%clk 0:01:58]}  c6 {[%clk 0:00:45]} 17. Rad1 {[%clk 0:01:48]}  fxe4 {[%clk 0:00:41]} 18. Bxe4 {[%clk 0:01:47]}  d5 {[%clk 0:00:42]} 19. Bg2 {[%clk 0:01:26]}  Qf6 {[%clk 0:00:38]} 20. Kh1 {[%clk 0:01:14]}  Ne7 {[%clk 0:00:35]} 21. Rde1 {[%clk 0:01:06]}  Nf5 {[%clk 0:00:22]} 22. Bd2 {[%clk 0:01:03]}  Rfe8 {[%clk 0:00:22]} 23. g4 {[%clk 0:00:52]}  Nh4 {[%clk 0:00:20]} 24. Bh3 {[%clk 0:00:52]}  Rxe6 {[%clk 0:00:04]} 25. g5 {[%clk 0:00:52]} 1-0

[Event "November 21 Early 2023"]
[Site "https://www.chess.com"]
[Date "2023.11.21"]
[Round "6"]
[White "Raja Rithvik R"]
[Black "Paravyan, David"]
[Result "1-0"]
[Board "14"]
[TimeControl "180+1"]
[WhiteFideId "35007394"]
[BlackFideId "4194985"]
[WhiteElo "2395"]
[BlackElo "2566"]
[WhiteTeam "IND"]
[BlackTeam "FID"]
[WhiteClock "0:00:11"]
[BlackClock "0:00:01"]

1. Nf3 {[%clk 0:03:00]}  d5 {[%clk 0:02:57]} 2. d4 {[%clk 0:02:57]}  Nf6 {[%clk 0:02:56]} 3. c4 {[%clk 0:02:53]}  dxc4 {[%clk 0:02:57]} 4. e3 {[%clk 0:02:52]}  e6 {[%clk 0:02:58]} 5. Bxc4 {[%clk 0:02:52]}  c5 {[%clk 0:02:58]} 6. O-O {[%clk 0:02:53]}  Nc6 {[%clk 0:02:59]} 7. dxc5 {[%clk 0:02:50]}  Qxd1 {[%clk 0:03:00]} 8. Rxd1 {[%clk 0:02:51]}  Bxc5 {[%clk 0:03:00]} 9. a3 {[%clk 0:02:47]}  a6 {[%clk 0:02:56]} 10. b4 {[%clk 0:02:47]}  Be7 {[%clk 0:02:57]} 11. Bb2 {[%clk 0:02:47]}  b5 {[%clk 0:02:57]} 12. Be2 {[%clk 0:02:46]}  Bb7 {[%clk 0:02:56]} 13. Nbd2 {[%clk 0:02:47]}  O-O {[%clk 0:02:55]} 14. Nb3 {[%clk 0:02:42]}  a5 {[%clk 0:02:56]} 15. bxa5 {[%clk 0:02:30]}  Nxa5 {[%clk 0:02:57]} 16. Nxa5 {[%clk 0:02:00]}  Rxa5 {[%clk 0:02:58]} 17. Nd4 {[%clk 0:02:00]}  b4 {[%clk 0:02:54]} 18. axb4 {[%clk 0:01:50]}  Bxb4 {[%clk 0:02:55]} 19. Rxa5 {[%clk 0:01:47]}  Bxa5 {[%clk 0:02:56]} 20. Bf3 {[%clk 0:01:33]}  Rb8 {[%clk 0:02:52]} 21. Ba3 {[%clk 0:01:23]}  Bxf3 {[%clk 0:02:46]} 22. gxf3 {[%clk 0:01:18]}  Rc8 {[%clk 0:02:43]} 23. Rc1 {[%clk 0:01:16]}  Rxc1+ {[%clk 0:02:42]} 24. Bxc1 {[%clk 0:01:17]}  Bb6 {[%clk 0:02:38]} 25. Bb2 {[%clk 0:01:13]}  Bxd4 {[%clk 0:02:37]} 26. Bxd4 {[%clk 0:01:14]}  Nd5 {[%clk 0:02:37]} 27. f4 {[%clk 0:01:14]}  f6 {[%clk 0:02:34]} 28. Kg2 {[%clk 0:01:15]}  Kf7 {[%clk 0:02:34]} 29. Kf3 {[%clk 0:01:15]}  Kg6 {[%clk 0:02:30]} 30. Kg4 {[%clk 0:01:08]}  Ne7 {[%clk 0:02:29]} 31. Bc5 {[%clk 0:01:06]}  Nf5 {[%clk 0:02:22]} 32. Bf8 {[%clk 0:01:03]}  Nh6+ {[%clk 0:02:09]} 33. Kf3 {[%clk 0:01:02]}  Nf5 {[%clk 0:02:08]} 34. Kg4 {[%clk 0:01:02]}  h6 {[%clk 0:01:54]} 35. h3 {[%clk 0:00:59]}  Kf7 {[%clk 0:00:58]} 36. Bc5 {[%clk 0:00:59]}  Kg6 {[%clk 0:00:48]} 37. Bf8 {[%clk 0:00:58]}  h5+ {[%clk 0:00:49]} 38. Kf3 {[%clk 0:00:58]}  Kf7 {[%clk 0:00:49]} 39. Bc5 {[%clk 0:00:59]}  Nh4+ {[%clk 0:00:42]} 40. Kg3 {[%clk 0:00:59]}  Ng6 {[%clk 0:00:43]} 41. Kf3 {[%clk 0:00:58]}  Nh8 {[%clk 0:00:38]} 42. Kg3 {[%clk 0:00:57]}  Kg6 {[%clk 0:00:38]} 43. Bf8 {[%clk 0:00:48]}  Nf7 {[%clk 0:00:38]} 44. e4 {[%clk 0:00:44]}  f5 {[%clk 0:00:37]} 45. f3 {[%clk 0:00:44]}  Nd8 {[%clk 0:00:36]} 46. Kf2 {[%clk 0:00:38]}  Kf7 {[%clk 0:00:36]} 47. Bb4 {[%clk 0:00:36]}  Nc6 {[%clk 0:00:35]} 48. Bc3 {[%clk 0:00:36]}  Ne7 {[%clk 0:00:31]} 49. Kg3 {[%clk 0:00:32]}  Ng6 {[%clk 0:00:31]} 50. h4 {[%clk 0:00:31]}  Nf8 {[%clk 0:00:25]} 51. Kf2 {[%clk 0:00:29]}  Ng6 {[%clk 0:00:24]} 52. Kg3 {[%clk 0:00:28]}  Ne7 {[%clk 0:00:24]} 53. Bb4 {[%clk 0:00:26]}  Ng8 {[%clk 0:00:24]} 54. Bc3 {[%clk 0:00:26]}  Nf6 {[%clk 0:00:18]} 55. Bxf6 {[%clk 0:00:23]}  Kxf6 {[%clk 0:00:19]} 56. Kf2 {[%clk 0:00:21]}  e5 {[%clk 0:00:17]} 57. Ke3 {[%clk 0:00:20]}  fxe4 {[%clk 0:00:05]} 58. fxe4 {[%clk 0:00:20]}  g6 {[%clk 0:00:03]} 59. fxe5+ {[%clk 0:00:19]}  Kxe5 {[%clk 0:00:03]} 60. Kf3 {[%clk 0:00:15]}  Ke6 {[%clk 0:00:03]} 61. Kf4 {[%clk 0:00:15]}  Kf6 {[%clk 0:00:02]} 62. e5+ {[%clk 0:00:15]}  Ke6 {[%clk 0:00:01]} 63. Ke4 {[%clk 0:00:16]}  Ke7 {[%clk 0:00:01]} 64. Kd5 {[%clk 0:00:15]}  Kd7 {[%clk 0:00:01]} 65. e6+ {[%clk 0:00:15]}  Ke8 {[%clk 0:00:02]} 66. Kd6 {[%clk 0:00:09]}  g5 {[%clk 0:00:02]} 67. hxg5 {[%clk 0:00:10]}  h4 {[%clk 0:00:01]} 68. g6 {[%clk 0:00:11]} 1-0

[Event "November 21 Early 2023"]
[Site "https://www.chess.com"]
[Date "2023.11.21"]
[Round "6"]
[White "Pranesh M"]
[Black "Molina, Roberto Junio Brito"]
[Result "1-0"]
[Board "16"]
[TimeControl "180+1"]
[WhiteFideId "35028600"]
[BlackFideId "2109450"]
[WhiteElo "2481"]
[BlackElo "2389"]
[WhiteTeam "IND"]
[BlackTeam "BRA"]
[WhiteClock "0:00:41"]
[BlackClock "0:00:16"]

1. e4 {[%clk 0:03:00]}  c6 {[%clk 0:02:54]} 2. d4 {[%clk 0:03:01]}  d5 {[%clk 0:02:54]} 3. e5 {[%clk 0:03:01]}  Bf5 {[%clk 0:02:54]} 4. g4 {[%clk 0:03:01]}  Bd7 {[%clk 0:02:54]} 5. Nc3 {[%clk 0:02:58]}  h5 {[%clk 0:02:53]} 6. gxh5 {[%clk 0:02:55]}  Bf5 {[%clk 0:02:53]} 7. Nge2 {[%clk 0:02:53]}  Bg4 {[%clk 0:02:53]} 8. Qd3 {[%clk 0:02:51]}  Bxh5 {[%clk 0:02:52]} 9. e6 {[%clk 0:02:45]}  fxe6 {[%clk 0:02:49]} 10. Nf4 {[%clk 0:02:45]}  Bf7 {[%clk 0:02:44]} 11. Ng6 {[%clk 0:02:45]}  Bxg6 {[%clk 0:02:39]} 12. Qxg6+ {[%clk 0:02:45]}  Kd7 {[%clk 0:02:39]} 13. Bf4 {[%clk 0:02:39]}  Qe8 {[%clk 0:02:32]} 14. Qd3 {[%clk 0:02:31]}  Qh5 {[%clk 0:02:22]} 15. h4 {[%clk 0:02:20]}  Nh6 {[%clk 0:02:20]} 16. Bh3 {[%clk 0:02:16]}  Nf5 {[%clk 0:02:19]} 17. Bg5 {[%clk 0:02:11]}  g6 {[%clk 0:02:16]} 18. Ne2 {[%clk 0:02:11]}  Qh7 {[%clk 0:02:11]} 19. Nf4 {[%clk 0:02:09]}  Bh6 {[%clk 0:02:05]} 20. O-O-O {[%clk 0:01:56]}  Qf7 {[%clk 0:01:59]} 21. Rhe1 {[%clk 0:01:36]}  Bxg5 {[%clk 0:01:56]} 22. hxg5 {[%clk 0:01:37]}  Na6 {[%clk 0:01:38]} 23. Rxe6 {[%clk 0:01:32]}  Nc7 {[%clk 0:01:33]} 24. Rxg6 {[%clk 0:01:20]}  Raf8 {[%clk 0:01:28]} 25. Re1 {[%clk 0:01:12]}  Rh4 {[%clk 0:01:23]} 26. Rf6 {[%clk 0:00:46]}  exf6 {[%clk 0:00:42]} 27. Qxf5+ {[%clk 0:00:45]}  Kd6 {[%clk 0:00:27]} 28. Ng6 {[%clk 0:00:42]}  fxg5 {[%clk 0:00:16]} 29. Qe5# {[%clk 0:00:41]} 1-0

[Event "November 21 Early 2023"]
[Site "https://www.chess.com"]
[Date "2023.11.21"]
[Round "6"]
[White "Bharath Subramaniyam H"]
[Black "Pendos666"]
[Result "0-1"]
[Board "17"]
[TimeControl "180+1"]
[WhiteFideId "46634827"]
[WhiteElo "2435"]
[BlackElo "2812"]
[WhiteTeam "IND"]
[WhiteClock "0:00:19"]
[BlackClock "0:00:27"]

1. e4 {[%clk 0:03:00]}  c5 {[%clk 0:02:59]} 2. Nf3 {[%clk 0:03:00]}  Nc6 {[%clk 0:02:57]} 3. Nc3 {[%clk 0:02:59]}  g6 {[%clk 0:02:57]} 4. d4 {[%clk 0:02:59]}  cxd4 {[%clk 0:02:58]} 5. Nxd4 {[%clk 0:03:00]}  Bg7 {[%clk 0:02:58]} 6. Be3 {[%clk 0:03:00]}  Nf6 {[%clk 0:02:59]} 7. Be2 {[%clk 0:03:01]}  O-O {[%clk 0:02:57]} 8. O-O {[%clk 0:03:01]}  d5 {[%clk 0:02:57]} 9. Nxc6 {[%clk 0:03:00]}  bxc6 {[%clk 0:02:56]} 10. e5 {[%clk 0:03:01]}  Nd7 {[%clk 0:02:55]} 11. f4 {[%clk 0:03:02]}  e6 {[%clk 0:02:50]} 12. b4 {[%clk 0:02:54]}  a5 {[%clk 0:02:46]} 13. a3 {[%clk 0:02:54]}  f6 {[%clk 0:02:43]} 14. exf6 {[%clk 0:02:50]}  Qxf6 {[%clk 0:02:42]} 15. Na2 {[%clk 0:02:16]}  Qxa1 {[%clk 0:02:36]} 16. Qxa1 {[%clk 0:02:17]}  Bxa1 {[%clk 0:02:36]} 17. Rxa1 {[%clk 0:02:18]}  axb4 {[%clk 0:02:32]} 18. Nxb4 {[%clk 0:02:19]}  c5 {[%clk 0:02:31]} 19. Nd3 {[%clk 0:02:16]}  Ba6 {[%clk 0:02:30]} 20. Bg4 {[%clk 0:02:16]}  Kf7 {[%clk 0:02:26]} 21. Bxc5 {[%clk 0:01:56]}  Rfc8 {[%clk 0:02:22]} 22. Bd4 {[%clk 0:01:47]}  Rxc2 {[%clk 0:02:13]} 23. Nb4 {[%clk 0:01:45]}  Rc4 {[%clk 0:02:03]} 24. Nxa6 {[%clk 0:01:24]}  Rxd4 {[%clk 0:01:54]} 25. Nc7 {[%clk 0:01:25]}  Ra5 {[%clk 0:01:50]} 26. Nxe6 {[%clk 0:01:23]}  Rda4 {[%clk 0:01:16]} 27. Ng5+ {[%clk 0:01:23]}  Ke7 {[%clk 0:01:16]} 28. Re1+ {[%clk 0:01:23]}  Kd6 {[%clk 0:01:13]} 29. Nf7+ {[%clk 0:01:06]}  Kc6 {[%clk 0:01:07]} 30. Re7 {[%clk 0:00:53]}  Rxf4 {[%clk 0:01:06]} 31. Bxd7+ {[%clk 0:00:51]}  Kc5 {[%clk 0:01:06]} 32. a4 {[%clk 0:00:45]}  Ra7 {[%clk 0:01:03]} 33. Ne5 {[%clk 0:00:38]}  Rfxa4 {[%clk 0:00:43]} 34. Re6 {[%clk 0:00:17]}  Re4 {[%clk 0:00:38]} 35. Be8 {[%clk 0:00:16]}  Ra2 {[%clk 0:00:30]} 36. Nd3+ {[%clk 0:00:15]}  Kd4 {[%clk 0:00:30]} 37. Rxe4+ {[%clk 0:00:15]}  dxe4 {[%clk 0:00:29]} 38. Ne1 {[%clk 0:00:14]}  Ke3 {[%clk 0:00:28]} 39. Bb5 {[%clk 0:00:13]}  Ra1 {[%clk 0:00:25]} 40. Kf1 {[%clk 0:00:09]}  Kd2 {[%clk 0:00:25]} 41. Kf2 {[%clk 0:00:09]}  Rxe1 {[%clk 0:00:26]} 42. Kg3 {[%clk 0:00:10]}  e3 {[%clk 0:00:26]} 43. Kh4 {[%clk 0:00:10]}  Rg1 {[%clk 0:00:26]} 44. g4 {[%clk 0:00:11]}  e2 {[%clk 0:00:26]} 45. Bxe2 {[%clk 0:00:12]}  Kxe2 {[%clk 0:00:27]} 46. Kg5 {[%clk 0:00:12]}  Kf3 {[%clk 0:00:27]} 47. h3 {[%clk 0:00:13]}  Kg3 {[%clk 0:00:27]} 48. h4 {[%clk 0:00:14]}  Kh3 {[%clk 0:00:27]} 49. h5 {[%clk 0:00:13]}  Rxg4+ {[%clk 0:00:27]} 50. Kh6 {[%clk 0:00:14]}  gxh5 {[%clk 0:00:27]} 51. Kxh5 {[%clk 0:00:15]}  Kg3 {[%clk 0:00:26]} 52. Kh6 {[%clk 0:00:16]}  Kf4 {[%clk 0:00:27]} 53. Kxh7 {[%clk 0:00:16]}  Kf5 {[%clk 0:00:27]} 54. Kh8 {[%clk 0:00:17]}  Kf6 {[%clk 0:00:27]} 55. Kh7 {[%clk 0:00:18]}  Rg3 {[%clk 0:00:27]} 56. Kh6 {[%clk 0:00:19]}  Rh3# {[%clk 0:00:27]} 0-1

[Event "November 21 Early 2023"]
[Site "https://www.chess.com"]
[Date "2023.11.21"]
[Round "6"]
[White "Van Foreest, Jorden"]
[Black "Arifarsky"]
[Result "1-0"]
[Board "18"]
[TimeControl "180+1"]
[WhiteFideId "1039784"]
[WhiteElo "2664"]
[BlackElo "2797"]
[WhiteTeam "NED"]
[WhiteClock "0:00:18"]
[BlackClock "0:00:00"]

1. e4 {[%clk 0:01:34]}  c5 {[%clk 0:02:58]} 2. Nf3 {[%clk 0:01:31]}  Nc6 {[%clk 0:02:59]} 3. Bb5 {[%clk 0:01:31]}  g6 {[%clk 0:02:58]} 4. O-O {[%clk 0:01:31]}  Bg7 {[%clk 0:02:58]} 5. Re1 {[%clk 0:01:32]}  Nf6 {[%clk 0:02:52]} 6. c3 {[%clk 0:01:32]}  O-O {[%clk 0:02:51]} 7. d4 {[%clk 0:01:32]}  cxd4 {[%clk 0:02:51]} 8. cxd4 {[%clk 0:01:29]}  d6 {[%clk 0:02:51]} 9. h3 {[%clk 0:01:28]}  a6 {[%clk 0:02:50]} 10. Bxc6 {[%clk 0:01:26]}  bxc6 {[%clk 0:02:51]} 11. Nc3 {[%clk 0:01:27]}  Be6 {[%clk 0:02:30]} 12. b3 {[%clk 0:01:27]}  c5 {[%clk 0:02:15]} 13. Be3 {[%clk 0:01:23]}  cxd4 {[%clk 0:02:14]} 14. Bxd4 {[%clk 0:01:20]}  Qa5 {[%clk 0:02:07]} 15. Qd2 {[%clk 0:01:20]}  Rfc8 {[%clk 0:02:03]} 16. Rac1 {[%clk 0:01:16]}  Qh5 {[%clk 0:01:52]} 17. Qe3 {[%clk 0:01:15]}  Bh6 {[%clk 0:01:51]} 18. Qd3 {[%clk 0:01:07]}  Bxc1 {[%clk 0:01:50]} 19. Rxc1 {[%clk 0:01:08]}  Nd7 {[%clk 0:01:43]} 20. Re1 {[%clk 0:01:08]}  Ne5 {[%clk 0:01:36]} 21. Bxe5 {[%clk 0:01:06]}  dxe5 {[%clk 0:01:37]} 22. Qe3 {[%clk 0:01:06]}  f6 {[%clk 0:01:33]} 23. Na4 {[%clk 0:01:03]}  Rc2 {[%clk 0:01:29]} 24. Nc5 {[%clk 0:00:55]}  Bxh3 {[%clk 0:01:28]} 25. gxh3 {[%clk 0:00:54]}  Qxh3 {[%clk 0:01:29]} 26. b4 {[%clk 0:00:50]}  Rxa2 {[%clk 0:01:24]} 27. Qb3+ {[%clk 0:00:49]}  Kh8 {[%clk 0:01:24]} 28. Qxa2 {[%clk 0:00:49]}  Qxf3 {[%clk 0:01:24]} 29. Re3 {[%clk 0:00:49]}  Qd1+ {[%clk 0:01:22]} 30. Kg2 {[%clk 0:00:49]}  Rd8 {[%clk 0:00:57]} 31. Qf7 {[%clk 0:00:47]}  Qg4+ {[%clk 0:00:20]} 32. Rg3 {[%clk 0:00:47]}  Qf4 {[%clk 0:00:15]} 33. Qxe7 {[%clk 0:00:32]}  Rg8 {[%clk 0:00:16]} 34. Ne6 {[%clk 0:00:24]}  Qxe4+ {[%clk 0:00:15]} 35. Kh2 {[%clk 0:00:23]}  Qf5 {[%clk 0:00:13]} 36. Kg2 {[%clk 0:00:18]}  Qe4+ {[%clk 0:00:13]} 37. Kg1 {[%clk 0:00:16]}  Qe1+ {[%clk 0:00:13]} 38. Kh2 {[%clk 0:00:17]}  Qxf2+ {[%clk 0:00:13]} 39. Kh3 {[%clk 0:00:17]}  Qf1+ {[%clk 0:00:12]} 40. Rg2 {[%clk 0:00:17]}  Qf5+ {[%clk 0:00:10]} 41. Kh2 {[%clk 0:00:16]}  Qh5+ {[%clk 0:00:11]} 42. Kg3 {[%clk 0:00:17]}  Qf5 {[%clk 0:00:10]} 43. Rf2 {[%clk 0:00:17]}  Qd3+ {[%clk 0:00:05]} 44. Rf3 {[%clk 0:00:18]}  Qd8 {[%clk 0:00:00]} 45. Nxd8 {[%clk 0:00:18]} 1-0

[Event "November 21 Early 2023"]
[Site "https://www.chess.com"]
[Date "2023.11.21"]
[Round "6"]
[White "Materia, Marco"]
[Black "Makarian, Rudik"]
[Result "1-0"]
[Board "19"]
[TimeControl "180+1"]
[WhiteFideId "45150451"]
[BlackFideId "44105681"]
[WhiteElo "2451"]
[BlackElo "2539"]
[WhiteTeam "FRA"]
[BlackTeam "FID"]
[WhiteClock "0:00:31"]
[BlackClock "0:00:00"]

1. d4 {[%clk 0:03:00]}  Nf6 {[%clk 0:02:56]} 2. c4 {[%clk 0:03:01]}  e6 {[%clk 0:02:56]} 3. Nf3 {[%clk 0:03:02]}  d5 {[%clk 0:02:56]} 4. Nc3 {[%clk 0:03:02]}  dxc4 {[%clk 0:02:55]} 5. e4 {[%clk 0:02:59]}  b5 {[%clk 0:02:55]} 6. e5 {[%clk 0:02:59]}  Nd5 {[%clk 0:02:54]} 7. Nxb5 {[%clk 0:02:59]}  Nb6 {[%clk 0:02:54]} 8. Be2 {[%clk 0:02:59]}  Nc6 {[%clk 0:02:53]} 9. O-O {[%clk 0:02:59]}  Be7 {[%clk 0:02:49]} 10. Be3 {[%clk 0:02:57]}  O-O {[%clk 0:02:47]} 11. Qc1 {[%clk 0:02:51]}  Nb4 {[%clk 0:02:45]} 12. Rd1 {[%clk 0:02:45]}  Bb7 {[%clk 0:02:33]} 13. Na3 {[%clk 0:02:24]}  Nd3 {[%clk 0:02:27]} 14. Qc2 {[%clk 0:02:20]}  Bxa3 {[%clk 0:02:26]} 15. bxa3 {[%clk 0:02:19]}  Qd5 {[%clk 0:02:19]} 16. Bf1 {[%clk 0:02:05]}  Bc6 {[%clk 0:02:14]} 17. Rdb1 {[%clk 0:02:01]}  Rab8 {[%clk 0:02:13]} 18. Nd2 {[%clk 0:02:00]}  f5 {[%clk 0:02:00]} 19. exf6 {[%clk 0:01:56]}  Rxf6 {[%clk 0:02:00]} 20. Nxc4 {[%clk 0:01:55]}  Nf4 {[%clk 0:01:49]} 21. Ne5 {[%clk 0:01:49]}  Ba8 {[%clk 0:01:19]} 22. Bxf4 {[%clk 0:01:41]}  Rxf4 {[%clk 0:01:20]} 23. Qxc7 {[%clk 0:01:41]}  Rbf8 {[%clk 0:01:17]} 24. Qc5 {[%clk 0:01:13]}  Rxf2 {[%clk 0:01:13]} 25. Qxd5 {[%clk 0:01:13]}  Bxd5 {[%clk 0:01:08]} 26. Rc1 {[%clk 0:01:07]}  Rd2 {[%clk 0:01:04]} 27. Rc7 {[%clk 0:01:04]}  h5 {[%clk 0:00:46]} 28. Rxa7 {[%clk 0:00:51]}  h4 {[%clk 0:00:40]} 29. Rb1 {[%clk 0:00:49]}  Nc8 {[%clk 0:00:39]} 30. Rc7 {[%clk 0:00:46]}  Nd6 {[%clk 0:00:38]} 31. Ng6 {[%clk 0:00:46]}  Rxf1+ {[%clk 0:00:19]} 32. Kxf1 {[%clk 0:00:46]}  Kh7 {[%clk 0:00:15]} 33. Nxh4 {[%clk 0:00:45]}  Kh6 {[%clk 0:00:12]} 34. Rb8 {[%clk 0:00:42]}  Kg5 {[%clk 0:00:09]} 35. Rxg7+ {[%clk 0:00:42]}  Kf4 {[%clk 0:00:08]} 36. Rg3 {[%clk 0:00:38]}  Bc4+ {[%clk 0:00:07]} 37. Ke1 {[%clk 0:00:37]}  Re2+ {[%clk 0:00:07]} 38. Kd1 {[%clk 0:00:38]}  Rxa2 {[%clk 0:00:08]} 39. Rf8+ {[%clk 0:00:34]}  Ke4 {[%clk 0:00:08]} 40. Rg4+ {[%clk 0:00:33]}  Kd5 {[%clk 0:00:05]} 41. Rd8 {[%clk 0:00:33]}  Kc6 {[%clk 0:00:04]} 42. Kc1 {[%clk 0:00:32]}  Bd5 {[%clk 0:00:02]} 43. Nf3 {[%clk 0:00:31]}  Ne4 {[%clk 0:00:00]} 44. Ne5+ {[%clk 0:00:31]} 1-0